bitfinex/quotes_BTCUSD_20250908
["timestamp","ask_amount","ask_price","bid_price","bid_amount"]
[1757339008510,0.1833134,112240.0,112230.0,5.87147572]
[1757339008747,0.1833134,112240.0,112230.0,6.21184119]
[1757339009209,0.00512381,112240.0,112230.0,6.21184119]
[1757339009625,0.1833134,112240.0,112230.0,6.21184119]
[1757339009835,0.00512381,112240.0,112230.0,6.47450233]
[1757339010037,0.00512381,112240.0,112230.0,6.49851233]
[1757339012007,0.00512381,112240.0,112230.0,6.23585119]
[1757339016063,0.00512381,112240.0,112230.0,6.2992565]
[1757339016895,0.00512381,112240.0,112230.0,6.0992565]
[1757339018233,0.1833134,112240.0,112230.0,5.75889103]
[1757339018438,0.1833134,112240.0,112230.0,6.0767665]
[1757339018650,0.1833134,112240.0,112230.0,5.89856103]
[1757339018858,0.1833134,112240.0,112230.0,6.0767665]
[1757339019274,0.1833134,112240.0,112230.0,6.0765665]
[1757339019918,0.00512381,112240.0,112230.0,6.01316119]
[1757339020135,0.00512381,112240.0,112230.0,6.03717119]
[1757339020347,0.00512381,112240.0,112230.0,6.1005765]
[1757339020771,0.17855784,112260.0,112250.0,0.53911253]
[1757339020981,0.01748214,112260.0,112250.0,6.1730901]
[1757339021194,0.01748214,112260.0,112250.0,5.91555277]
[1757339021422,0.01748214,112260.0,112250.0,6.3730901]
[1757339021629,0.01748214,112260.0,112250.0,6.3971001]
[1757339022268,0.01748214,112260.0,112250.0,6.34940585]
[1757339022932,0.19563998,112260.0,112250.0,6.18608585]
[1757339023152,0.19563998,112260.0,112250.0,6.21885279]
[1757339023361,0.19563998,112260.0,112250.0,6.05565279]
[1757339023571,0.19563998,112260.0,112250.0,5.99464279]
[1757339023779,0.19563998,112260.0,112250.0,5.83164279]
[1757339024049,0.19759998,112260.0,112250.0,5.99153279]
[1757339024266,0.19959998,112260.0,112250.0,5.99153279]
[1757339024483,0.19959998,112260.0,112250.0,0.53659798]
[1757339025795,0.20256998,112260.0,112250.0,0.57651109]
[1757339025983,0.20256998,112260.0,112250.0,0.32593733]
[1757339026219,0.20256998,112260.0,112250.0,0.53643798]
[1757339026429,0.20256998,112260.0,112250.0,0.48869733]
[1757339026869,0.91763586,112260.0,112250.0,0.0684]
[1757339027095,0.91763586,112260.0,112250.0,0.23108]
[1757339027314,0.54256998,112260.0,112250.0,0.23108]
[1757339027502,0.91763586,112260.0,112250.0,0.23108]
[1757339029047,0.54256998,112260.0,112250.0,0.23108]
[1757339029261,0.20256998,112260.0,112250.0,0.23108]
[1757339029904,0.57763586,112260.0,112250.0,0.23108]
[1757339030122,0.20256998,112260.0,112250.0,0.23108]
[1757339033989,0.20256998,112260.0,112250.0,0.31071287]
[1757339034828,0.57763586,112260.0,112250.0,0.31071287]
[1757339035273,0.57763586,112260.0,112250.0,0.14803287]
[1757339035495,0.17817371,112250.0,112240.0,0.31624906]
[1757339035701,0.19479315,112250.0,112240.0,0.77985332]
[1757339035912,0.19682315,112250.0,112240.0,0.78191332]
[1757339036113,0.19677315,112250.0,112240.0,0.78191332]
[1757339036816,0.19677315,112250.0,112240.0,0.61991332]
[1757339037037,0.19677315,112250.0,112240.0,0.48785733]
[1757339037038,0.19978315,112250.0,112240.0,0.48785733]
[1757339037230,0.18316371,112250.0,112240.0,0.48785733]
[1757339037649,0.19983189,112250.0,112240.0,0.48785733]
[1757339038069,0.20083189,112250.0,112240.0,0.48785733]
[1757339038269,0.18416371,112250.0,112240.0,0.48785733]
[1757339038487,0.18115371,112250.0,112240.0,0.48785733]
[1757339038682,0.18215371,112250.0,112240.0,0.48785733]
[1757339038904,0.18215371,112250.0,112240.0,0.50567733]
[1757339039359,0.18215371,112250.0,112240.0,0.50773733]
[1757339039561,0.18215371,112250.0,112240.0,0.2502]
[1757339039769,0.18215371,112250.0,112240.0,0.24814]
[1757339042273,0.18215371,112250.0,112240.0,0.2502]
[1757339042680,0.18215371,112250.0,112240.0,0.23547]
[1757339043599,0.18215371,112250.0,112240.0,0.23238]
[1757339044026,0.18017371,112250.0,112240.0,0.32738599]
[1757339045006,0.18215371,112250.0,112240.0,5.38788833]
[1757339045384,0.18017371,112250.0,112240.0,5.64851566]
[1757339045566,0.18215371,112250.0,112240.0,5.64542566]
[1757339046978,0.18215371,112250.0,112240.0,5.64336566]
[1757339048658,0.18215371,112250.0,112240.0,5.64542566]
[1757339049153,0.18215371,112250.0,112240.0,5.66324566]
[1757339049366,0.18215371,112250.0,112240.0,5.40734967]
[1757339049582,0.18516371,112250.0,112240.0,0.56886967]
[1757339050226,0.18215371,112250.0,112240.0,0.56886967]
[1757339050788,0.18516371,112250.0,112240.0,0.56886967]
[1757339051075,0.18215371,112250.0,112240.0,0.56886967]
[1757339052686,0.19516371,112250.0,112240.0,0.56886967]
[1757339052866,0.19516371,112250.0,112240.0,0.40734967]
[1757339053056,0.19516371,112250.0,112240.0,0.50491733]
[1757339053273,0.19516371,112250.0,112240.0,0.48709733]
[1757339053877,0.57022959,112250.0,112240.0,0.0684]
[1757339054099,0.17818959,112240.0,112230.0,0.06359234]
[1757339054308,0.17818959,112240.0,112230.0,0.31971833]
[1757339054682,0.19017371,112250.0,112230.0,5.45733028]
[1757339054887,0.19017371,112250.0,112240.0,5.06387029]
[1757339055107,0.18917371,112250.0,112240.0,0.06387029]
[1757339055304,0.18917371,112250.0,112240.0,0.16093628]
[1757339055500,0.18817371,112250.0,112240.0,0.36093628]
[1757339056555,0.19416371,112250.0,112240.0,0.06387029]
[1757339056755,0.19416371,112250.0,112240.0,0.72603029]
[1757339056957,0.19516371,112250.0,112240.0,0.22603029]
[1757339057162,0.19215371,112250.0,112240.0,0.22603029]
[1757339057370,0.19516371,112250.0,112240.0,0.22587029]
[1757339058403,0.19516371,112250.0,112240.0,0.162]
[1757339059849,0.19516371,112250.0,112240.0,0.20991493]
[1757339060273,0.19516371,112250.0,112240.0,0.20991026]
[1757339060692,0.19516371,112250.0,112240.0,0.04791026]
[1757339060908,1.11894456,112250.0,112240.0,0.20963026]
[1757339061113,0.53516371,112250.0,112240.0,0.20963026]
[1757339066892,0.19215371,112250.0,112240.0,0.20963026]
[1757339067111,0.19215371,112250.0,112240.0,0.16172]
[1757339067299,0.19215371,112250.0,112240.0,0.16674]
[1757339068066,0.19215371,112250.0,112240.0,0.16379]
[1757339068272,0.19215371,112250.0,112240.0,0.22766029]
[1757339068468,0.19215371,112250.0,112240.0,0.22559029]
[1757339069096,0.19215371,112250.0,112240.0,0.16172]
[1757339070521,0.19215371,112250.0,112240.0,0.23012]
[1757339072085,0.19215371,112250.0,112240.0,0.48765733]
[1757339072684,0.19215371,112250.0,112240.0,0.32593733]
[1757339072935,0.19516371,112250.0,112240.0,0.48629733]
[1757339073183,0.19516371,112250.0,112240.0,0.53418498]
[1757339073435,0.19516371,112250.0,112240.0,0.53414498]
[1757339073688,0.53516371,112250.0,112240.0,0.30542498]
[1757339073945,0.53516371,112250.0,112240.0,0.41785733]
[1757339075162,0.53516371,112250.0,112240.0,0.46574498]
[1757339075398,0.53516371,112250.0,112240.0,0.41785733]
[1757339076096,0.53516371,112250.0,112240.0,0.25753733]
[1757339076337,0.17818959,112240.0,112230.0,0.04788765]
[1757339076576,0.1839838,112240.0,112230.0,0.04788765]
[1757339076809,0.18318959,112240.0,112230.0,0.20792765]
[1757339080187,0.18418959,112240.0,112230.0,0.20792765]
[1757339080408,0.18418959,112240.0,112230.0,0.04788765]
[1757339080612,0.18418959,112240.0,112230.0,0.20776765]
[1757339080845,0.17820547,112230.0,112220.0,0.45753733]
[1757339081086,0.17825311,112200.0,112190.0,0.51187528]
[1757339081319,0.18316831,112200.0,112190.0,0.55984]
[1757339081508,0.18038311,112200.0,112190.0,0.63252212]
[1757339081753,0.18038311,112200.0,112190.0,0.76486]
[1757339081754,0.18103831,112200.0,112190.0,0.76486]
[1757339081962,0.17825311,112200.0,112190.0,0.76486]
[1757339082182,0.17825311,112200.0,112190.0,1.03504499]
[1757339082385,0.17825311,112200.0,112190.0,5.85677599]
[1757339082596,0.17823723,112210.0,112190.0,6.05610762]
[1757339082714,0.17825311,112200.0,112190.0,0.96124163]
[1757339082934,0.17825311,112200.0,112190.0,6.12450762]
[1757339083140,0.17825311,112200.0,112190.0,5.94623862]
[1757339083571,0.17925311,112200.0,112190.0,6.12450762]
[1757339083788,0.17925311,112200.0,112190.0,5.94623862]
[1757339083993,0.17825311,112200.0,112190.0,5.94623862]
[1757339084208,0.18025311,112200.0,112190.0,5.98569586]
[1757339084409,0.18025311,112200.0,112190.0,6.16396486]
[1757339084608,0.18125311,112200.0,112190.0,6.16396486]
[1757339085043,0.18125311,112200.0,112190.0,5.98569586]
[1757339086057,0.18323311,112200.0,112190.0,5.75989704]
[1757339086271,0.18323311,112200.0,112190.0,5.76196704]
[1757339086472,0.18125311,112200.0,112190.0,5.76196704]
[1757339086687,0.18125311,112200.0,112190.0,5.76491704]
[1757339086904,0.18125311,112200.0,112190.0,6.02811704]
[1757339091274,0.18125311,112200.0,112190.0,6.10790582]
[1757339092287,0.18125311,112200.0,112190.0,6.28617482]
[1757339093355,0.18125311,112200.0,112190.0,6.10790582]
[1757339094283,0.18323311,112200.0,112190.0,6.10790582]
[1757339094500,0.18323311,112200.0,112190.0,5.89136381]
[1757339094709,0.18323311,112200.0,112190.0,5.89344381]
[1757339094938,0.18323311,112200.0,112190.0,5.89136381]
[1757339096197,0.18624311,112200.0,112190.0,0.89136381]
[1757339097097,0.18323311,112200.0,112190.0,0.89136381]
[1757339097924,0.18323311,112200.0,112190.0,0.89344381]
[1757339098152,0.18323311,112200.0,112190.0,0.89666381]
[1757339098587,0.18323311,112200.0,112190.0,0.89344381]
[1757339098805,0.18323311,112200.0,112190.0,0.62816381]
[1757339099019,0.18323311,112200.0,112190.0,0.63024381]
[1757339099432,0.18323311,112200.0,112190.0,0.62816381]
[1757339099832,0.18624311,112200.0,112190.0,0.62816381]
[1757339100283,0.18624311,112200.0,112190.0,0.46852381]
[1757339100486,0.18624311,112200.0,112190.0,0.62816381]
[1757339101671,0.18125311,112200.0,112190.0,0.63024381]
[1757339101876,0.18324311,112200.0,112190.0,0.62816381]
[1757339102280,0.18125311,112200.0,112190.0,5.63346381]
[1757339102475,0.18125311,112200.0,112190.0,5.7253798]
[1757339102902,0.18125311,112200.0,112190.0,5.80516858]
[1757339103104,0.003,112200.0,112190.0,6.3443764]
[1757339103322,0.003,112200.0,112190.0,6.3691064]
[1757339103501,0.003,112200.0,112190.0,6.28931762]
[1757339103881,0.003,112200.0,112190.0,6.48931762]
[1757339104197,0.003,112200.0,112190.0,6.6011929]
[1757339104740,0.003,112200.0,112190.0,6.4415529]
[1757339104943,0.003,112200.0,112190.0,6.6011929]
[1757339105155,0.001,112200.0,112190.0,6.4011929]
[1757339105350,0.17825311,112200.0,112190.0,6.32137822]
[1757339105558,0.17825311,112200.0,112190.0,6.37010294]
[1757339105757,0.001,112200.0,112190.0,6.37010294]
[1757339105967,0.17925311,112200.0,112190.0,6.03223394]
[1757339106170,0.17925311,112200.0,112190.0,6.16710394]
[1757339106380,0.17925311,112200.0,112190.0,6.34537294]
[1757339106556,0.17925311,112200.0,112190.0,6.16710394]
[1757339106925,0.17925311,112200.0,112190.0,5.66750394]
[1757339107146,0.17925311,112200.0,112190.0,5.80616512]
[1757339107371,0.17825311,112200.0,112190.0,5.80616512]
[1757339107686,0.17825311,112200.0,112190.0,5.82710394]
[1757339107888,0.17825311,112200.0,112190.0,6.00537294]
[1757339108114,0.17825311,112200.0,112190.0,5.66750394]
[1757339108288,0.17825311,112200.0,112190.0,5.82710394]
[1757339109126,0.00198,112200.0,112190.0,5.64334512]
[1757339109382,0.01193106,112220.0,112190.0,5.80616512]
[1757339109383,0.01470576,112220.0,112190.0,5.80616512]
[1757339109634,0.00199,112200.0,112190.0,0.64334512]
[1757339109873,0.00199,112200.0,112190.0,5.70894913]
[1757339110102,0.00199,112200.0,112190.0,5.97214913]
[1757339110535,0.00278495,112210.0,112190.0,5.97744913]
[1757339110776,0.01169576,112220.0,112200.0,5.25473599]
[1757339110996,0.00891106,112220.0,112210.0,5.1596]
[1757339111207,0.00891106,112220.0,112210.0,0.25681599]
[1757339111966,0.00891106,112220.0,112210.0,5.45681599]
[1757339112173,0.00891027,112230.0,112210.0,5.45681599]
[1757339112329,0.00891027,112230.0,112220.0,5.23122]
[1757339112557,0.00891027,112230.0,112220.0,0.23122]
[1757339112772,0.00891027,112230.0,112220.0,0.2333]
[1757339112981,0.00891027,112230.0,112220.0,0.32521599]
[1757339113193,0.18711574,112230.0,112220.0,0.32521599]
[1757339113834,0.18919574,112230.0,112220.0,0.16031599]
[1757339114048,0.77588659,112230.0,112220.0,0.228]
[1757339114702,0.17825311,112200.0,112190.0,0.42428263]
[1757339114913,0.17825311,112200.0,112190.0,5.74627862]
[1757339115590,0.17825311,112200.0,112190.0,5.7253398]
[1757339115995,0.18023311,112200.0,112190.0,5.5625198]
[1757339116192,0.18023311,112200.0,112190.0,5.46952381]
[1757339116414,0.18023311,112200.0,112190.0,5.62912381]
[1757339116719,0.18023311,112200.0,112190.0,0.62912381]
[1757339117075,0.17825311,112200.0,112190.0,0.63120381]
[1757339117286,0.17825311,112200.0,112190.0,0.63442381]
[1757339117547,0.17825311,112200.0,112190.0,6.26554762]
[1757339117866,0.17823723,112210.0,112190.0,6.46554762]
[1757339118069,0.17823723,112210.0,112200.0,5.33781311]
[1757339118277,0.18716001,112220.0,112210.0,0.37823723]
[1757339118502,0.18716001,112220.0,112210.0,0.45677599]
[1757339119104,0.18914001,112220.0,112210.0,0.45355599]
[1757339119507,0.18914001,112220.0,112210.0,0.71675599]
[1757339120151,0.19114001,112220.0,112210.0,0.71467599]
[1757339120357,0.19114001,112220.0,112210.0,0.62276]
[1757339120562,0.19415001,112220.0,112210.0,0.62276]
[1757339120762,0.19114001,112220.0,112210.0,0.62276]
[1757339122098,0.19214001,112220.0,112210.0,0.62477]
[1757339122309,0.19016001,112220.0,112210.0,5.91896204]
[1757339122776,0.19016001,112220.0,112210.0,5.74072481]
[1757339123628,0.19016001,112220.0,112210.0,5.91896204]
[1757339123832,0.19016001,112220.0,112210.0,5.74072481]
[1757339124223,0.19016001,112220.0,112210.0,5.91896204]
[1757339125192,0.19016001,112220.0,112210.0,5.74072481]
[1757339125614,0.19214001,112220.0,112210.0,5.73762481]
[1757339125818,0.19016001,112220.0,112210.0,5.53762481]
[1757339126099,0.19016001,112220.0,112210.0,5.54072481]
[1757339126250,0.19016001,112220.0,112210.0,5.71896204]
[1757339126987,0.003,112220.0,112210.0,5.71896204]
[1757339127403,0.003,112220.0,112210.0,6.05896204]
[1757339127608,0.003,112220.0,112210.0,6.08188204]
[1757339128433,0.003,112220.0,112210.0,6.10861637]
[1757339128670,0.002,112220.0,112210.0,6.10861637]
[1757339128982,0.17819046,112240.0,112230.0,0.34]
[1757339129154,0.17819046,112240.0,112230.0,5.92814599]
[1757339129738,0.18295467,112240.0,112230.0,0.3316]
[1757339129953,0.18017046,112240.0,112230.0,0.49112]
[1757339130155,0.18017046,112240.0,112230.0,0.49313]
[1757339131329,0.17819046,112240.0,112230.0,5.58814599]
[1757339131548,0.18097467,112240.0,112230.0,5.58814599]
[1757339131922,0.17819046,112240.0,112230.0,5.58814599]
[1757339132133,0.18017046,112240.0,112230.0,5.58504599]
[1757339132335,0.18117046,112240.0,112230.0,5.58303599]
[1757339132542,0.18119046,112240.0,112230.0,5.58814599]
[1757339133323,0.18317046,112240.0,112230.0,5.58504599]
[1757339134037,0.18119046,112240.0,112230.0,5.58814599]
[1757339134421,0.18317046,112240.0,112230.0,5.58299599]
[1757339134625,0.18317046,112240.0,112230.0,0.58299599]
[1757339134834,0.18317046,112240.0,112230.0,0.42351599]
[1757339135035,0.18317046,112240.0,112230.0,0.58299599]
[1757339135245,0.18618046,112240.0,112230.0,0.49108]
[1757339135858,0.18317046,112240.0,112230.0,0.49108]
[1757339137187,0.18119046,112240.0,112230.0,0.49309]
[1757339137387,0.18119046,112240.0,112230.0,0.49619]
[1757339137814,0.18317046,112240.0,112230.0,0.49309]
[1757339139642,0.18317046,112240.0,112230.0,0.3316]
[1757339139847,0.18317046,112240.0,112230.0,0.49104]
[1757339140079,0.18317046,112240.0,112230.0,0.49305]
[1757339140667,0.18317046,112240.0,112230.0,0.49104]
[1757339141292,0.18618046,112240.0,112230.0,0.49104]
[1757339143590,0.18317046,112240.0,112230.0,0.49104]
[1757339143823,0.18119046,112240.0,112230.0,0.49615]
[1757339144052,0.003,112240.0,112230.0,6.15013028]
[1757339144404,0.003,112240.0,112230.0,6.16795028]
[1757339145112,0.003,112240.0,112230.0,6.36795028]
[1757339145322,0.003,112240.0,112230.0,5.94531028]
[1757339145507,0.003,112240.0,112230.0,6.10471028]
[1757339145948,0.18817371,112250.0,112240.0,0.53912841]
[1757339146160,0.01,112250.0,112240.0,5.7955544]
[1757339146998,0.01,112250.0,112240.0,5.8184744]
[1757339149895,0.01,112250.0,112240.0,5.6590744]
[1757339150098,0.01,112250.0,112240.0,5.8184344]
[1757339151956,0.01,112250.0,112240.0,5.6590744]
[1757339152159,0.01,112250.0,112240.0,5.8184344]
[1757339155671,0.01,112250.0,112240.0,5.84516014]
[1757339155851,0.18817371,112250.0,112240.0,5.84516014]
[1757339156063,0.18817371,112250.0,112240.0,5.68580014]
[1757339156272,0.18817371,112250.0,112240.0,5.84512014]
[1757339156409,0.18817371,112250.0,112240.0,5.8183944]
[1757339156610,0.18817371,112250.0,112240.0,5.64020481]
[1757339157045,0.18817371,112250.0,112240.0,5.64016481]
[1757339157294,0.18817371,112250.0,112240.0,5.8183544]
[1757339157668,0.18817371,112250.0,112240.0,5.64016481]
[1757339157864,0.18817371,112250.0,112240.0,5.6590744]
[1757339158063,0.18817371,112250.0,112240.0,5.8183544]
[1757339158322,0.18817371,112250.0,112240.0,5.6590744]
[1757339158530,0.18817371,112250.0,112240.0,5.8183544]
[1757339158902,0.18817371,112250.0,112240.0,5.64016481]
[1757339159144,0.18817371,112250.0,112240.0,5.8183544]
[1757339160476,0.01,112250.0,112240.0,5.8183544]
[1757339161095,0.01,112250.0,112240.0,6.55288016]
[1757339162246,0.01,112250.0,112240.0,6.61665657]
[1757339162452,0.01,112250.0,112240.0,6.55288016]
[1757339163374,0.00237893,112250.0,112240.0,6.66475544]
[1757339163606,0.1971391,112280.0,112270.0,0.01426139]
[1757339163808,0.1976018,112280.0,112270.0,5.97437042]
[1757339164028,0.0104627,112280.0,112270.0,6.05687935]
[1757339164262,0.18858881,112280.0,112270.0,6.08056935]
[1757339164493,0.18858881,112280.0,112270.0,5.67873738]
[1757339164709,0.19054881,112280.0,112270.0,5.56054951]
[1757339164925,0.19054881,112280.0,112270.0,5.54335812]
[1757339165141,0.19054881,112280.0,112270.0,5.36068812]
[1757339165570,0.19054881,112280.0,112270.0,5.20132812]
[1757339165783,0.19154881,112280.0,112270.0,0.22768]
[1757339165990,0.19456881,112280.0,112270.0,0.22768]
[1757339166407,0.56978862,112280.0,112270.0,0.22764]
[1757339166623,0.56978862,112280.0,112270.0,0.2276]
[1757339166846,0.56978862,112280.0,112270.0,0.23634085]
[1757339167078,0.17817371,112250.0,112240.0,0.06368179]
[1757339167293,0.18593767,112250.0,112240.0,0.14105571]
[1757339167497,0.18593767,112250.0,112240.0,0.06836]
[1757339167498,0.55837352,112250.0,112240.0,0.06836]
[1757339168388,0.55837352,112250.0,112240.0,0.2276]
[1757339168601,0.17820547,112230.0,112220.0,0.14087901]
[1757339168800,0.17820547,112230.0,112220.0,0.06836]
[1757339168801,0.56118974,112230.0,112220.0,0.06836]
[1757339169007,0.55840528,112230.0,112220.0,0.06836]
[1757339169463,0.18318547,112230.0,112220.0,0.06836]
[1757339169885,0.18318547,112230.0,112220.0,0.22772381]
[1757339170293,0.55840528,112230.0,112220.0,0.2914056]
[1757339170497,0.55840528,112230.0,112220.0,0.22772381]
[1757339170953,0.65032127,112230.0,112220.0,0.06848381]
[1757339171163,0.17822135,112220.0,112210.0,0.13208179]
[1757339171368,0.18100605,112220.0,112210.0,0.13208179]
[1757339171577,0.18598605,112220.0,112210.0,0.13208179]
[1757339171797,0.18320135,112220.0,112210.0,0.13208179]
[1757339172019,0.55842116,112220.0,112210.0,0.13208179]
[1757339172228,0.18320135,112220.0,112210.0,0.13208179]
[1757339172442,0.55842116,112220.0,112210.0,0.29132179]
[1757339173074,0.55842116,112220.0,112210.0,0.29232179]
[1757339173925,0.55842116,112220.0,112200.0,0.07960224]
[1757339173926,0.17823723,112210.0,112200.0,0.07960224]
[1757339174136,0.55624199,112210.0,112200.0,0.29152747]
[1757339174357,0.55843704,112210.0,112200.0,0.22777886]
[1757339174585,0.18321723,112210.0,112200.0,0.22777886]
[1757339175645,0.55843704,112210.0,112200.0,0.06853886]
[1757339175913,0.17825311,112200.0,112190.0,0.4684]
[1757339176127,0.55625812,112200.0,112190.0,0.62768]
[1757339176335,0.55845292,112200.0,112190.0,0.62768]
[1757339177045,0.18021311,112200.0,112190.0,0.62768]
[1757339177260,0.18299831,112200.0,112190.0,0.62768]
[1757339177450,0.18021311,112200.0,112190.0,0.62768]
[1757339178350,0.17825311,112200.0,112190.0,0.90282499]
[1757339178594,0.18103831,112200.0,112190.0,0.72455599]
[1757339178737,0.0037852,112200.0,112190.0,0.90282499]
[1757339178935,0.001,112200.0,112190.0,5.90282499]
[1757339179140,0.17925311,112200.0,112190.0,5.90282499]
[1757339179772,0.17925311,112200.0,112190.0,5.98242723]
[1757339180120,0.17925311,112200.0,112190.0,5.80415823]
[1757339180322,0.18121311,112200.0,112190.0,5.54800224]
[1757339180536,0.18121311,112200.0,112190.0,0.62768]
[1757339180744,0.18121311,112200.0,112190.0,0.4684]
[1757339180962,0.18423311,112200.0,112190.0,0.62768]
[1757339181608,0.55945292,112200.0,112190.0,0.4684]
[1757339181812,0.55945292,112200.0,112190.0,0.62768]
[1757339182043,0.65136891,112200.0,112190.0,0.4684]
[1757339182298,0.86059343,112200.0,112190.0,0.62768]
[1757339182506,0.8873445,112200.0,112190.0,0.62768]
[1757339182915,1.2273445,112200.0,112190.0,0.62768]
[1757339184192,1.2273445,112200.0,112190.0,1e-08]
[1757339184626,0.64290017,112200.0,112190.0,1e-08]
[1757339184833,0.178269,112190.0,112180.0,0.15928]
[1757339185040,0.86043477,112190.0,112180.0,0.15928]
[1757339185265,0.85962932,112190.0,112180.0,0.15928]
[1757339185691,0.183269,112190.0,112180.0,0.15928]
[1757339187023,0.186269,112190.0,112180.0,0.15928]
[1757339187231,0.188269,112190.0,112180.0,0.15928]
[1757339188840,0.77271333,112190.0,112180.0,0.15928]
[1757339189263,0.77271333,112190.0,112170.0,0.0684]
[1757339189264,0.17828489,112180.0,112170.0,0.0684]
[1757339189452,0.77050492,112180.0,112170.0,0.22768]
[1757339189682,0.18327489,112180.0,112170.0,0.22768]
[1757339190105,0.18032489,112180.0,112170.0,0.22768]
[1757339190320,0.18311059,112180.0,112170.0,0.22768]
[1757339190694,0.18132489,112180.0,112170.0,0.22768]
[1757339190902,0.18411059,112180.0,112170.0,0.22768]
[1757339191347,0.20361758,112180.0,112170.0,0.22768]
[1757339191542,0.20083188,112180.0,112170.0,0.22768]
[1757339192654,0.19988188,112180.0,112170.0,0.22768]
[1757339193252,0.20283188,112180.0,112170.0,0.22768]
[1757339193571,0.19988188,112180.0,112170.0,0.22768]
[1757339193826,0.20283188,112180.0,112170.0,0.22768]
[1757339197564,0.78727621,112180.0,112170.0,0.0684]
[1757339197771,0.78727621,112180.0,112170.0,0.22768]
[1757339197970,0.8791922,112180.0,112170.0,0.22768]
[1757339198177,0.8791922,112180.0,112170.0,0.15928]
[1757339198839,0.17831669,112160.0,112150.0,0.34045676]
[1757339199050,0.20264987,112160.0,112150.0,0.23667573]
[1757339199268,0.19691368,112160.0,112150.0,0.23667573]
[1757339199478,0.19691368,112160.0,112150.0,0.00013897]
[1757339199479,1.12430801,112160.0,112150.0,0.00013897]
[1757339200291,1.12430801,112160.0,112150.0,0.00213897]
[1757339200591,1.12430801,112160.0,112150.0,0.00113897]
[1757339200824,1.12430801,112160.0,112150.0,0.00013897]
[1757339201063,1.12630801,112160.0,112150.0,0.00013897]
[1757339201288,1.12430801,112160.0,112150.0,0.00013897]
[1757339201903,1.216224,112160.0,112150.0,0.00013897]
[1757339202111,1.216224,112160.0,112150.0,0.15941897]
[1757339202756,0.17834849,112140.0,112130.0,0.07751224]
[1757339202960,0.19973217,112140.0,112130.0,0.23679224]
[1757339203167,0.19989548,112140.0,112130.0,0.23679224]
[1757339204222,0.19989548,112140.0,112130.0,0.22772]
[1757339204431,0.19694548,112140.0,112130.0,0.22772]
[1757339204587,0.19989548,112140.0,112130.0,0.22772]
[1757339204800,0.19694548,112140.0,112130.0,0.2297]
[1757339204962,0.19490548,112140.0,112130.0,0.23264]
[1757339205165,0.19694548,112140.0,112130.0,0.2297]
[1757339205467,0.19694548,112140.0,112130.0,0.22772]
[1757339206073,0.19694548,112140.0,112130.0,0.23682838]
[1757339206271,0.18038849,112140.0,112130.0,0.23880838]
[1757339206586,0.19697114,112140.0,112130.0,0.23880838]
[1757339207644,0.19493114,112140.0,112130.0,0.24174838]
[1757339207877,0.01658265,112140.0,112130.0,0.87296758]
[1757339208091,0.01658265,112140.0,112130.0,5.87296758]
[1757339208308,0.01658265,112140.0,112130.0,6.09700758]
[1757339208528,0.01658265,112140.0,112130.0,6.36020758]
[1757339211003,0.01658265,112140.0,112130.0,6.36120758]
[1757339212456,0.01658265,112140.0,112130.0,6.38796041]
[1757339212867,0.01658265,112140.0,112130.0,6.22868041]
[1757339213086,0.01658265,112140.0,112130.0,6.38792041]
[1757339213291,0.01658265,112140.0,112130.0,6.22868041]
[1757339213497,0.17833504,112150.0,112140.0,0.19928731]
[1757339213700,0.19499496,112150.0,112140.0,5.11818481]
[1757339213943,0.19499496,112150.0,112140.0,5.4557333]
[1757339214573,0.19499496,112150.0,112140.0,5.2965333]
[1757339214779,0.19499496,112150.0,112140.0,5.4557333]
[1757339214983,0.19599496,112150.0,112140.0,5.4557333]
[1757339215186,0.01865992,112150.0,112140.0,5.4557333]
[1757339215904,0.01865992,112150.0,112140.0,5.4806733]
[1757339216348,0.01765992,112150.0,112140.0,5.58432171]
[1757339216555,0.01765992,112150.0,112140.0,5.52048916]
[1757339216760,0.01765992,112150.0,112140.0,5.58432171]
[1757339217078,0.00013866,112160.0,112150.0,0.53927141]
[1757339217287,0.19511566,112160.0,112150.0,5.45605481]
[1757339217493,0.19511566,112160.0,112150.0,5.88058481]
[1757339217696,0.19511566,112160.0,112150.0,6.0589174]
[1757339218308,0.01679897,112160.0,112150.0,6.0589174]
[1757339218938,0.01679897,112160.0,112150.0,6.0838574]
[1757339219742,0.01679897,112160.0,112150.0,6.0848574]
[1757339219961,0.01679897,112160.0,112150.0,6.0848174]
[1757339220228,0.19511566,112160.0,112150.0,6.0848174]
[1757339220443,0.01679897,112160.0,112150.0,6.0848174]
[1757339220648,0.01679897,112160.0,112150.0,5.9256574]
[1757339220858,0.01679897,112160.0,112150.0,6.0848174]
[1757339221073,0.19511566,112160.0,112150.0,5.9266574]
[1757339221286,0.19709566,112160.0,112150.0,5.86160599]
[1757339221498,0.19511566,112160.0,112150.0,5.85840599]
[1757339221709,0.19511566,112160.0,112150.0,5.86060599]
[1757339221915,0.01679897,112160.0,112150.0,5.86060599]
[1757339222114,0.19511566,112160.0,112150.0,5.86260599]
[1757339222327,0.19511566,112160.0,112150.0,5.85960599]
[1757339222532,0.01679897,112160.0,112150.0,6.0588774]
[1757339222745,0.01679897,112160.0,112150.0,6.0858174]
[1757339223171,0.01679897,112160.0,112150.0,6.0838174]
[1757339223805,0.01679897,112160.0,112150.0,6.16546995]
[1757339224222,0.01679897,112160.0,112150.0,6.1026374]
[1757339224640,0.00013866,112160.0,112150.0,6.12838492]
[1757339224854,0.01678703,112160.0,112150.0,6.12938492]
[1757339225060,0.01678703,112160.0,112150.0,6.19325181]
[1757339225272,0.00013866,112160.0,112150.0,6.12838492]
[1757339225479,0.00013866,112160.0,112150.0,6.13138492]
[1757339225682,0.00013866,112160.0,112150.0,6.57598492]
[1757339226095,0.00013866,112160.0,112150.0,6.65558716]
[1757339226307,0.00013866,112160.0,112150.0,6.65358716]
[1757339226522,0.00013866,112160.0,112150.0,6.65354716]
[1757339226732,0.00013866,112160.0,112150.0,6.48166075]
[1757339226941,0.00013866,112160.0,112150.0,6.64078446]
[1757339227153,0.00013866,112160.0,112150.0,6.84078441]
[1757339227386,0.00013866,112160.0,112150.0,6.68066441]
[1757339227614,0.00013866,112160.0,112150.0,6.81299689]
[1757339227826,0.00013866,112160.0,112150.0,6.65591689]
[1757339228024,0.00013866,112160.0,112150.0,6.81499689]
[1757339228245,0.00013866,112160.0,112150.0,6.45091689]
[1757339228246,0.17845535,112160.0,112150.0,6.45091689]
[1757339228471,0.17845535,112160.0,112150.0,6.04578548]
[1757339228695,0.17845535,112160.0,112150.0,5.96712599]
[1757339228961,0.17845535,112160.0,112150.0,6.48745858]
[1757339229179,0.17845535,112160.0,112150.0,6.48445858]
[1757339229614,0.17845535,112160.0,112150.0,6.48545858]
[1757339229615,0.00013866,112160.0,112150.0,6.48545858]
[1757339229823,0.00013866,112160.0,112150.0,6.5053974]
[1757339230036,0.00013866,112160.0,112150.0,6.59417689]
[1757339230264,0.00113866,112160.0,112150.0,6.59417689]